Cogmind - Beta 16 @@@ ROGUE MODE // 2025.11.15 @ 18:18:24 Player: Mozco Result: Destroyed by G-47 Trooper with Particle Gun Performance ------------- Evolutions (1) 500 Regions Visited (2) 400 Robots Destroyed (23) 115 Value Destroyed (471) 471 Prototype IDs (1) 20 Alien Tech Used (0) 0 Bonus (0) 0 TOTAL SCORE: 1506 Bonus ------- None Cogmind --------- Core Integrity 0/400 Matter 300/300 Energy 100/100 System Corruption 2% Temperature Cool (9) Movement Core (250) Ox4 Location -9/Materials Parts ------- > --- POWER (1) -------- (None) > --- PROPULSION (3) --- (None) > --- UTILITY (3) ------ Medium Storage Unit Signal Interpreter Hacking Suite > --- WEAPON (2) ------- Heavy Hammer Mining Claw > --- INVENTORY (10) --- Light Ion Engine Small Storage Unit Large Storage Unit Transport Network Coupler Shield Generator Hammer Peak State ------------ > --- POWER ------------ Heavy Ion Engine > --- PROPULSION ------- Aluminum Leg Aluminum Leg Improved Aluminum Leg > --- UTILITY ---------- Medium Storage Unit Signal Interpreter Hacking Suite > --- WEAPON ----------- Hammer Heavy Hammer > --- INVENTORY -------- Light Ion Engine Small Storage Unit Large Storage Unit Transport Network Coupler Shield Generator Mining Claw [Rating: 15] Favorites ----------- Power Light Ion Engine Engine Light Ion Engine Propulsion Aluminum Leg Leg Aluminum Leg Flight Unit Flight Unit Utility Signal Interpreter Device Shield Generator Storage Medium Storage Unit Processor Signal Interpreter Hackware Hacking Suite Weapon Heavy Hammer Impact Weapon Heavy Hammer Slashing Weapon Mining Claw Build | -11 -10 -9 ------- Run | Yrd Mat Mat Slots Evolved 2 | . . 2 Power . | . . . Propulsion 1 | . . 1 Utility 1 | . . 1 Weapon . | . . . Parts Attached 20 | . 8 12 Power 6 | . 2 4 Engine 6 | . 2 4 Core . | . . . Reactor . | . . . Propulsion 7 | . 4 3 Treads . | . . . Leg 5 | . 2 3 Wheel . | . . . Hover . | . . . Flight 2 | . 2 . Utility 4 | . 1 3 Device 1 | . . 1 Storage 1 | . . 1 Processor 1 | . 1 . Hackware 1 | . . 1 Protection . | . . . Artifact . | . . . Weapon 3 | . 1 2 Energy Gun . | . . . Energy Cannon . | . . . Ballistic Gun . | . . . Ballistic Cannon . | . . . Launcher . | . . . Special Weapon . | . . . Impact Weapon 2 | . . 2 Slashing Weapon 1 | . 1 . Piercing Weapon . | . . . Special Melee Weapon . | . . . Unidentified Prototypes 1 | . . 1 Corrupted Parts 1 | . . 1 System Corruption 2 | . . 2 Parts Lost 7 | . 1 6 Power 3 | . 1 2 Propulsion 4 | . . 4 Utility . | . . . Weapon . | . . . Highest Loss Streak 3 | . 1 3 To Critical Strikes . | . . . Average Backups 4 | 2 4 5 Power 1 | 1 1 1 Propulsion . | 1 1 . Utility 2 | . 1 2 Weapon . | . . . Tool/Special . | . . . Unused Backups 4 | . . 4 Power 1 | . . 1 Propulsion . | . . . Utility 3 | . . 3 Weapon . | . . . Tool/Special . | . . . Average Slot Usage (%) 78 | . 38 88 Engine 9 | . 5 10 Leg 16 | . 7 18 Flight 9 | . 5 10 Device 3 | . . 4 Storage 5 | . . 6 Processor 11 | . 11 11 Hackware 6 | . . 8 Impact Weapon 11 | . . 14 Slashing Weapon 4 | . 7 3 Peak Build Rating 15 | . 5 15 Average Rating 9 | . 2 11 On Entrance 1 | . . 5 Avg Prop Armor Cover (%) 9 | . . 9 Naked Turns 23 | . 23 . Heaviest Build 23 | . 7 23 Greatest Support 33 | 3 20 33 Greatest Overweight (x) 7 | . . 7 Average Overweight (x) . | . . . Largest Inventory Capacity 10 | 5 5 10 Average Capacity 7 | 5 5 7 Most Carried 6 | 5 5 6 Average Carried 4 | 3 4 5 Final Capacity 10 | 5 5 10 Final Carried 6 | 5 5 6 Class Distribution -------------------- 75% | Mutant 24% | Scavenger-Mutant Dominant Class ---------------- Mutant | -10/Materials Mutant | -9/Materials Resources | -11 -10 -9 ----------- Run | Yrd Mat Mat Matter Collected 442 | 200 52 190 Remotely . | . . . Salvage Created 828 | . 52 776 Parts 31 | . 6 25 Haulers Intercepted 1 | . . 1 Recyclers Shooed . | . . . Parts Field Recycled . | . . . Retrieved Matter . | . . . Parts Self-Destructed . | . . . Prevented . | . . . Parts Restored . | . . . Kills | -11 -10 -9 ------- Run | Yrd Mat Mat Combat Hostiles Destroyed 17 | . 3 14 Melee 12 | . 3 9 Classes Destroyed 7 | . 1 6 Hauler 1 | . . 1 Recycler 3 | . . 3 Operator 1 | . . 1 Watcher 1 | . . 1 Swarmer 8 | . 3 5 Grunt 6 | . . 6 Sentry 3 | . . 3 Best Kill Streak 5 | . 3 5 Combat Bots Only 4 | . 3 4 Max Kills in Single Turn 1 | . 1 1 Gunslinging . | . . . Exploded . | . . . Melee 1 | . 1 1 Uniques/NPCs Destroyed . | . . . Combat | -11 -10 -9 -------- Run | Yrd Mat Mat Hostile Shots Fired 232 | . 80 152 Missed 81 | . 33 48 Hits 151 | . 47 104 Projectile 151 | . 47 104 Critical Strikes 4 | . 2 2 Damage Taken 1435 | . 400 1035 Core 642 | . 230 412 Absorbed by Shields 44 | . . 44 Regen/Repaired (Parts) 17 | . . 17 Core Remaining (%) 54 | 100 8 . Volleys Fired . | . . . Largest . | . . . Hottest . | . . . Shots Fired . | . . . Gun . | . . . Cannon . | . . . Launcher . | . . . Special . | . . . Kinetic . | . . . Thermal . | . . . Explosive . | . . . Electromagnetic . | . . . Robot Hit Streak . | . . . Robot Miss Streak . | . . . Penetration Max . | . . . Secondary Targets . | . . . Shots Hit Robots 56 | . 7 49 Core Hits 14 | . 3 11 Critical Kills 1 | . . 1 Critical Parts Destroyed 5 | . . 5 Critical Strikes 6 | . . 6 Smash 6 | . . 6 Melee Attacks 83 | . 13 70 Impact 52 | . . 52 Slashing 31 | . 13 18 Piercing . | . . . Sneak Attacks 5 | . . 5 Combat Hostiles . | . . . Follow-up Attacks 8 | . . 8 Damage Inflicted 1965 | . 167 1798 Guns . | . . . Cannons . | . . . Explosions . | . . . Melee 1965 | . 167 1798 Ramming . | . . . Kinetic . | . . . Thermal . | . . . Explosive . | . . . Electromagnetic . | . . . Impact 1518 | . . 1518 Slashing 447 | . 167 280 Piercing . | . . . Highest Corruption 2 | . . 2 Average Corruption 2 | . . 2 Corruption Purged . | . . . Corruption Blocked . | . . . Effects 6 | . . 6 Message Errors 1 | . . 1 Matter Fused 3 | . . 3 Energy Discharges 1 | . . 1 Data Loss (major) 1 | . . 1 Overload Shots . | . . . Overflow Damage 461 | . . 461 Projectiles . | . . . Explosions . | . . . Melee 461 | . . 461 Knockbacks 7 | . . 7 Impact 7 | . . 7 Kinetic . | . . . Secondary . | . . . Self-Inflicted Damage . | . . . Shots . | . . . Rammed . | . . . Targets Rammed . | . . . Kicked . | . . . Crushed . | . . . Highest Temperature 2 | . 2 . Average Temperature 2 | . 2 . Received Heat Transfer 341 | . 45 296 Siege Activations . | . . . Martial Activations . | . . . Shielding Activations . | . . . Robots Disrupted . | . . . Combat Hostiles . | . . . Robots Corrupted 7 | . . 7 Combat Hostiles 5 | . . 5 Parts Fried 9 | . . 9 Impact Corruptions 19 | . . 19 Robots Melted . | . . . Combat Hostiles . | . . . Parts Melted . | . . . Heat Transferred . | . . . Parts Sabotaged . | . . . Parts Stolen . | . . . Parts Stripped . | . . . Power Chain Reactions . | . . . Alert | -11 -10 -9 ------- Run | Yrd Mat Mat Maximum Alert Level 1 | . . 1 Low Security (%) 99 | 100 100 98 Level 1 . | . . 1 Level 2 . | . . . Level 3 . | . . . Level 4 . | . . . Level 5 . | . . . High Security . | . . . Max Security . | . . . Peak Influence 200 | . 130 200 Initial 46 | . . 46 Average 77 | . 65 84 Influence Increases 667 | . 180 487 Destroy 0b10 Robot/C 340 | . 60 280 Destroy 0b10 Robot/NC 30 | . . 30 Destroy Leader 74 | . 10 64 Successful Hack 13 | . 5 8 Lose Combat Pursuer 210 | . 105 105 Influence Decreases 485 | . 70 415 Entered New Map 64 | . . 64 Time Decay 351 | . 60 291 Lost Part 70 | . 10 60 Squads Dispatched 4 | . 1 3 Investigation 1 | . . 1 Extermination . | . . . Reinforcement 3 | . 1 2 Assault . | . . . Garrison . | . . . Intercept . | . . . Searches Triggered . | . . . Construction Impeded . | . . . Haulers Reinforced . | . . . Active Scanning Responses . | . . . Cargo Convoy Interrupts . | . . . Stealth | -11 -10 -9 --------- Run | Yrd Mat Mat Distress Signals 2 | . . 2 Communications Jammed . | . . . Distress Signals . | . . . Times Spotted 45 | . 14 31 Peak Tracking Total 8 | . 8 7 Tactical Retreats 5 | . 2 3 Traps | -11 -10 -9 ------- Run | Yrd Mat Mat Traps Triggered 1 | . . 1 Indirectly . | . . . Trap Hack Attempts . | . . . Triggered . | . . . Disarmed . | . . . Reprogrammed . | . . . Reused . | . . . Traps Extracted . | . . . Installed . | . . . Triggered . | . . . Machines | -11 -10 -9 ---------- Run | Yrd Mat Mat Machines Disabled . | . . . Max in Single Turn . | . . . Machines Repaired . | . . . Machines Dismantled . | . . . Machines Sabotaged . | . . . Overloaded Fab Kills . | . . . Hacking | -11 -10 -9 --------- Run | Yrd Mat Mat Machines Accessed 6 | . 1 5 Terminals 5 | . 1 4 Fabricators . | . . . Repair Stations 1 | . . 1 Recycling Units . | . . . Scanalyzers . | . . . Garrison Access . | . . . Total Hacks 22 | . 3 19 Successful 13 | . 2 11 Failed 9 | . 1 8 Catastrophic . | . . . Database Lockouts . | . . . Manual 9 | . 1 8 Terminals 14 | . 3 11 Fabricators . | . . . Repair Stations 8 | . . 8 Recycling Units . | . . . Scanalyzers . | . . . Garrison Access . | . . . Terminal Hacks 7 | . 2 5 Robot Analysis 2 | . . 2 Locate Traps 1 | . . 1 Hauler Manifests 2 | . 1 1 Zone Layout 2 | . 1 1 Fabricator Hacks . | . . . Repair Station Hacks 4 | . . 4 Scan Component 2 | . . 2 Repair 2 | . . 2 Recycling Unit Hacks . | . . . Scanalyzer . | . . . Garrison Access Hacks . | . . . Unauthorized Hacks 2 | . . 2 Terminals 2 | . . 2 Botnet 2 | . . 2 Fabricators . | . . . Repair Stations . | . . . Recycling Units . | . . . Scanalyzers . | . . . Garrison Access . | . . . Data Cores Recovered . | . . . Used . | . . . Hacking Detections 6 | . 1 5 Full Trace Events . | . . . Feedback Events . | . . . Feedback Blocked . | . . . Robot Schematics Acquired . | . . . Robots Built . | . . . Authchips . | . . . Time . | . . . Total Robot Build Rating . | . . . Part Schematics Acquired . | . . . Parts Built . | . . . Authchips . | . . . Time . | . . . Total Part Build Rating . | . . . Part Studies Acquired . | . . . Parts Repaired 2 | . . 2 Time 52 | . . 52 Parts Recycled . | . . . Recycled Matter . | . . . Retrieved Matter . | . . . Retrieved Components . | . . . Parts Scanalyzed . | . . . Part Schematics Acquired . | . . . Parts Damaged . | . . . Bothacking | -11 -10 -9 ------------ Run | Yrd Mat Mat Used RIF Installer . | . . . Robots Hacked . | . . . Non-combat . | . . . Combat . | . . . Robot Hacks Applied . | . . . Relay Couplers Released . | . . . Fabnet Peak Effective % . | . . . Robots Rewired . | . . . Allies Hacked . | . . . Hacks Repelled . | . . . Allies | -11 -10 -9 -------- Run | Yrd Mat Mat Total Allies . | . . . Largest Group . | . . . Highest-Rated Group . | . . . Highest-Rated Ally . | . . . Total Orders . | . . . Ally Attacks . | . . . Total Damage . | . . . Kills . | . . . Allies Corrupted . | . . . Allies Melted . | . . . Intel | -11 -10 -9 ------- Run | Yrd Mat Mat Active Infowar (turns) . | . . . Robot Analysis Total 2 | . . 2 Derelict Logs Recovered . | . . . Drone Launches . | . . . Drone Recoveries . | . . . Exploration | -11 -10 -9 ------------- Run | Yrd Mat Mat Turns Passed 889 | 34 175 680 Spaces Moved 796 | 59 247 490 Core 225 | 59 164 2 Treads . | . . . Legs 265 | . 8 257 Wheels . | . . . Hover . | . . . Flight 306 | . 75 231 Fastest Speed 37 | 50 37 37 Average Speed 71 | 50 48 85 Slowest Speed 400 | 50 120 400 Overloaded Moves . | . . . Propulsion Burnouts . | . . . Robots Hopped 3 | . 3 . Potential Cave-ins . | . . . Cave-ins Triggered . | . . . Exploration Rate (%) 36 | 3 56 49 Regions Visited 2 Branch Regions . Pre-discovered Areas . | . . . Known Exits Taken 1 | . 1 . Unknown Exits Taken 1 | 1 . . Scrap Searched . | . . . Spaces Dug . | . . . Terrain Destroyed . | . . . Melee . | . . . Projectile . | . . . AOE . | . . . Terrain Rammed . | . . . Walls Destroyed . | . . . Machines Disabled . | . . . Actions | -11 -10 -9 --------- Run | Yrd Mat Mat Total 975 | 63 272 640 Wait 67 | . 1 66 Move 789 | 58 241 490 Hop 2 | . 2 . Pick Up 13 | 5 5 3 Fast Attach 14 | . 3 11 Attach 6 | . 5 1 Detach 1 | . . 1 Swap 4 | . . 4 Drop 8 | . 2 6 Fire . | . . . Melee 71 | . 13 58 Ram . | . . . Kick . | . . . Crush . | . . . Escape Stasis . | . . . Rewire . | . . . Trap . | . . . Miscellaneous . | . . . Route ------- -11/Scrapyard -10/Materials (discovered 2 exits: *Mat / [*Min]) -9/Materials (discovered 1 exit: [*Min]) History --------- Turn | Location | Event 3 | -11/Scrapyard | Discovered new exit (range 16) 35 | -11/Scrapyard | Entered Materials 94 | -10/Materials | Core integrity fell below 50% 105 | -10/Materials | Discovered new exit (range 10) 123 | -10/Materials | Core integrity fell below 20% 206 | -10/Materials | Discovered new exit (range 3) 210 | -10/Materials | Identified exit to Materials 210 | -10/Materials | Entered another Materials area 210 | -9/Materials | Evolved 2 slots: Propulsion x1, Utility x1 262 | -9/Materials | Repaired Mining Claw 290 | -9/Materials | Repaired Flight Unit 311 | -9/Materials | Build established: Mutant 707 | -9/Materials | Discovered new exit (range 11) 873 | -9/Materials | Core integrity fell below 50% 884 | -9/Materials | Core integrity fell below 20% 890 | -9/Materials | Destroyed by G-47 Trooper with Particle Gun Last Messages --------------- 00840_ System corrupted: Matter fused (-10). 00840_ S-10 Pest destroyed. 00848_ Destroyed Flight Unit. 00848_ S-10 Pest system corrupted by crushing effect. 00848_ S-10 Pest destroyed. 00851_ R-06 Scavenger collects Lgt. Ion Engine. 00855_ Hvy. Hammer follow-up attack on G-34 Mercenary. 00855_ Destroyed Heat Sink. 00855_ G-34 Mercenary system corrupted by crushing effect. 00855_ G-34 Mercenary knocked back. 00862_ G-34 Mercenary misfires. 00863_ TLUIVDZRU&HXAORK=GAW,GZ/BO8&>S/ %>20 00864_ G-34 Mercenary misfires. 00866_ G-34 Mercenary IFF system glitched. 00866_ Aluminum Leg destroyed. 00867_ Ion Engine fried. 00867_ G-34 Mercenary destroyed. 00868_ Aluminum Leg destroyed. 00874_ Hvy. Hammer follow-up attack on G-47 Trooper. 00881_ Hvy. Ion Engine destroyed. Map ----- +----------------------------------------------------+ | | | | | | | | | | | | | | | | | | | | | | | ?????????????????????????????????????????????????? | | ?????????????????????????????????????????????????? | | ?????????????????????????????????????????????????? | | ?????????????????????????????????????????????????? | | ?????????????????????????????????????????????????? | | ?????????????????????????????????????????????????? | | ?????????????????????????????????????????????????? | | ?????????????????????????????????????????????????? | | ??????????????????###+##############+#???????????? | | ??????????????????# #?????????? | | ??????????????????#^ #?????????? | | ??????????????????# ^ ########???????????????? | | ??????????????????# # #?????????????????? | | ??????????????????# %g # #?????????????????? | | ??????????????????# "T" @# !! #?????????????????? | | ??????????????????# """ %+=!! # #???????? | | ??????????????????#+##### #[!! / [ #???????? | | ????????????????????????#t# # #???????? | | ????????????????????????# # #??? ????????? | | ????????????????????????# # #??????? ????????? | | ????????????????????????# # ]#?????????????????? | | ????????????????????????# ##+###?????????????????? | | ????????????????????????# ## #???????????????????? | | ????????????????????????# ## #???????????????????? | | ????????????????????????# ## #???????????????????? | | ????????????????????????# ## #???????????????????? | | ?????????????????########;## #???????????????????? | | ?????????????????# !! ## #???????????????????? | | ?????????????????# !! ## #???????????????????? | | ?????????????????# ## #???????????????????? | | ?????????????????# [ ## #???????????????????? | | ?????????????????# ## #???????????????????? | | ?????????????????# ] ## #???????????????????? | | ?????????????????# ## #???????????????????? | | ??????? ????????# ## #???????????????????? | | ???????? ???????# ## ##??????????????????? | | ???????? ############+#### *# """ ????????????? | | ??????? ^ =% + """ ????????????? | | ??????? ### # """ ????????????? | +----------------------------------------------------+ Best States ------------- Heat Dissipation 28 Energy Generation 14 Energy Capacity 280 Matter Stores 300 Matter Capacity 300 Sight Range 16 Terrain Scan Density 10 Evasion (%) 62 Offensive Hacking 10 Item Schematics ----------------- None Robot Schematics ------------------ None Fabricated ------------ Nothing Repaired ---------- Mining Claw | 67% | -9/Materials Flight Unit | 80% | -9/Materials Studied --------- None Alien Tech Used ----------------- None Achievements -------------- None Challenges ------------ None Game ------ Seed GhostMiniSlayer Manual? 0 Play Time 00:12:03 Cumulative 269.2 hours Start 2025.11.15 @ 18:09:14 End 2025.11.15 @ 18:18:24 Sessions 1 Manual Loads 0 Difficulty Rogue Special Mode None Game No. 274 Rogue 270 Adventurer 3 Explorer 1 Win Type - Total 1 Types 1/0/0/0/0/0/0/0/0/0 Lore% 78 Gallery% 75 Achievement% 60 Wizard Run 0 Options --------- Layout 0 ASCII 0 Keyboard 0 Movement Mouse Keybinds 0 Fullscreen 2 Font 18/SmallcapsGlow Map View 76x50 Zoom Use 0% Tactical HUD 1 Map Filters NONE Filters NONE Steam 1 RUN: fbb05fd3-1cb7-4eab-9987-61b859f231ea